[Event "55th Iranian-ch Men Final 2022"]
[Site "Iran"]
[Date "2022.06.22"]
[Round "11.3"]
[White "Ghaem Maghami, Ehsan"]
[Black "Omidi, Arya"]
[Result "1-0"]
[ECO "E97"]
[WhiteElo "2519"]
[BlackElo "2321"]
[Annotator "TA"]
[PlyCount "99"]
[EventDate "2022.06.15"]
[EventType "tourn"]
[EventCountry "IRI"]
[SourceTitle "playchess.com"]
[Source "ChessBase"]
[SourceQuality "1"]
[TimeControl "40/5400+30:1800+30"]

{[%evp 23,99,33,35,39,31,29,73,51,108,90,97,71,170,137,155,121,122,114,117,106,125,108,141,139,158,143,147,138,152,137,132,152,132,148,176,176,188,177,188,188,181,181,181,181,181,181,181,190,235,152,152,152,152,147,137,62,335,335,472,470,470,393,467,463,992,539,653,583,583,463,500,455,518,400,418,380,1541,1414]} 1. Nf3 {[%emt 0:15:26]} Nf6 {[%emt 0:00:21]} 2. c4 {[%emt 0:00:08]} g6 {[%emt 0:01:28]} 3. Nc3 {[%emt 0:00:24]} Bg7 {[%emt 0:00:29]} 4. e4 {[%emt 0:02:15]} O-O {[%emt 0:00:14]} 5. d4 {[%emt 0:00:33]} d6 {[%emt 0:00:06]} 6. Be2 {[%emt 0:00:26]} e5 {[%emt 0:00:26]} 7. O-O {[%emt 0:01:26]} Nc6 {[%emt 0:00:27]} 8. Be3 {[%emt 0:01:01]} Ng4 {[%emt 0:00:13]} 9. Bg5 {[%emt 0:00:14]} f6 {[%emt 0:00:03]} 10. Bh4 {[%emt 0:00:16]} g5 {[%emt 0:00:15]} 11. Bg3 {[%emt 0:00:15]} Nh6 {[%emt 0:00:06]} 12. dxe5 {[%emt 0:00:48]} fxe5 {[%emt 0:00:02]} 13. Nd5 $1 {[%emt 0:00:29][%mdl 4] is recently more successful than 13.h3. E97: King's Indian: Classical Main Line (6...e5 7 0-0 Nc6): 8 Be3 and 8 d5 Ne7, not 9 Ne1.} Nf7 {[%emt 0:02:33]} 14. Rc1 {[%emt 0:26:37] [#]} h5 $146 {[%emt 0:07:18] [#] aiming for ...h4.} ({Predecessor:} 14... Nd4 15. Nxd4 exd4 16. c5 c6 17. Nb4 dxc5 18. Rxc5 Qe7 19. Nd3 Qxe4 20. Re1 Qe6 {½-½ (28) Gonda,L (2532)-Palliser,R (2413) Hull 2019}) 15. h3 $1 {[%emt 0:00:51] 0x0.000861655147dp-1022s more active pieces. The black rooks are badly placed. White is better.} Nh6 {[%emt 0:10:50]} (15... h4 $14 16. Bh2 Nd4) 16. c5 $16 {[%emt 0:04:29][%cal Od5c7]} h4 {[%emt 0:05:20]} 17. Bh2 {[%emt 0:00:22]} Kh8 {[%emt 0:09:05]} (17... g4 $16 {was called for.}) 18. cxd6 {[%emt 0:02:20]} cxd6 {[%emt 0:00:08]} 19. Ne3 {[%emt 0:01:24]} Qf6 {[%emt 0:06:39]} 20. Nd2 {[%emt 0:03:12]} Nd4 {[%emt 0:03:06]} 21. Bc4 {[%emt 0:13:56]} Bd7 {[%emt 0:13:40]} 22. Nb3 {[%emt 0:02:00]} Qg6 {[%emt 0:04:33] [#]} 23. f3 $1 {[%emt 0:03:03] Prevents g4.} b5 {[%emt 0:02:47]} 24. Bd5 {[%emt 0:02:38]} Rac8 {[%emt 0:00:01]} 25. Rxc8 {[%emt 0:02:16]} Rxc8 {[%emt 0:00:23]} 26. Kh1 {[%emt 0:02:37]} Ng8 {[%emt 0:02:39]} 27. Bxg8 {[%emt 0:07:36]} (27. Nxd4 exd4 28. Nc2 Ne7 $16) 27... Kxg8 {[%emt 0:00:02]} 28. Nd5 {[%emt 0:00:38] Hoping for Ne7+.} Re8 {[%emt 0:00:13] Inhibits Ne7+.} 29. Nxd4 {[%emt 0:00:40]} exd4 {[%emt 0:00:03]} 30. Bg1 {[%emt 0:00:10]} Be6 {[%emt 0:03:03]} 31. Nc7 {[%emt 0:01:03]} ({Resist} 31. Bxd4 Bxd5 32. exd5 Re7 $16) 31... Rc8 {[%emt 0:01:15]} 32. Nxe6 {[%emt 0:00:10]} ({Don't play} 32. Nxb5 Bc4 $16) 32... Qxe6 {[%emt 0:00:04]} 33. Bxd4 {[%emt 0:00:07]} Bxd4 {[%emt 0:03:20]} 34. Qxd4 $18 {[%emt 0:00:06][%mdl 4096] Endgame KQR-KQR} Qe5 {[%emt 0:00:17]} 35. Qd2 {[%emt 0:03:19]} a6 {[%emt 0:00:01]} 36. b3 {[%emt 0:02:07]} Kg7 {[%emt 0:00:28]} 37. Rd1 {[%emt 0:02:20]} Rc6 {[%emt 0:00:28]} 38. a4 {[%emt 0:00:16]} bxa4 {[%emt 0:00:43]} 39. bxa4 {[%emt 0:00:02]} ({Better is} 39. Qb4 $16 {Threatens to win with Qb7+.} Qc5 40. Qxa4) 39... Kf6 $2 {[%emt 0:00:02][%mdl 8192] Loses the game.} ({Black should play} 39... Rc4 $14) 40. Qb4 {[%emt 0:00:00]} Qf4 {[%emt 0:00:00]} (40... Qe7 $142 41. Qd4+ Kg6) 41. Qb8 {[%emt 0:02:11] Threatening mate with Qd8+.} Qe5 {[%emt 0:05:05]} 42. Qb7 {[%emt 0:08:21]} ({Not} 42. Qg8 Ke7 43. Rb1 Kf6 44. Qf8+ Kg6 $18) 42... Qc5 {[%emt 0:01:44]} 43. Qd7 {[%emt 0:00:32][%cal Of3f4] And now f4! would win.} Rb6 {[%emt 0:02:32]} (43... Qc2 $142) 44. Qd8+ {[%emt 0:03:37]} Ke6 {[%emt 0:01:58]} 45. Qe8+ {[%emt 0:02:04]} Kf6 {[%emt 0:00:09]} 46. Qd7 {[%emt 0:00:28]} a5 {[%emt 0:02:07]} 47. Qd8+ {[%emt 0:00:22]} Ke6 {[%emt 0:00:12]} 48. Qe8+ {[%emt 0:00:11]} Kf6 {[%emt 0:00:05]} 49. Qd7 {[%emt 0:00:07]} Rc6 $2 {[%emt 0:00:28]} (49... Kg6 50. Qe6+ Kg7) 50. f4 {[%emt 0:00:28] Weighted Error Value: White=0.27 (precise) /Black=0.46} 1-0

[Event "55th Iranian-ch Men Final 2022"]
[Site "Iran"]
[Date "2022.06.22"]
[Round "11.4"]
[White "Mousavi, Seyed Khalil"]
[Black "Naderi, Abdollah"]
[Result "1-0"]
[ECO "B43"]
[WhiteElo "2524"]
[BlackElo "2050"]
[Annotator "TA"]
[PlyCount "69"]
[EventDate "2022.06.15"]
[EventType "tourn"]
[EventCountry "IRI"]
[SourceTitle "playchess.com"]
[Source "ChessBase"]
[SourceQuality "1"]
[TimeControl "40/5400+30:1800+30"]

{[%evp 11,69,24,56,52,50,48,54,38,38,39,48,32,30,17,66,12,43,32,147,135,143,150,138,125,117,114,86,51,127,-6,104,90,95,89,109,59,131,126,129,120,583,593,582,586,29983,29984,29980,979,959,957,931,868,2443,2400,29991,3598,29992,29993,29993,29994]} 1. e4 {[%emt 0:03:03]} c5 {[%emt 0:04:07]} 2. Nf3 {[%emt 0:00:09][%cal Bg1f3,Bf3d4,Bd4b3][%mdl 32]} e6 {[%emt 0:00:22]} 3. d4 {[%emt 0:00:45]} cxd4 {[%emt 0:00:17]} 4. Nxd4 {[%emt 0:00:07]} a6 {[%emt 0:00:15]} 5. Nc3 {[%emt 0:03:44]} Qc7 {[%emt 0:00:52]} 6. Bd3 {[%emt 0:00:16]} Bc5 {[%emt 0:02:17]} 7. Nb3 {[%emt 0:02:18] B43: Sicilian: Kan Variation: 5 Nc3.} Be7 {[%emt 0:01:59]} 8. Qg4 {[%emt 0:09:39]} g6 {[%emt 0:02:44]} 9. Be3 {[%emt 0:01:43] White is slightly better.} d6 {[%emt 0:08:51] [#]} 10. Qg3 $146 {[%emt 0:05:45]} ({Predecessor:} 10. Qe2 Nd7 11. a4 b6 12. O-O Bb7 13. Rae1 Ngf6 14. Bh6 Bf8 15. Bxf8 Kxf8 16. f4 {1-0 (57) Ivanovic,M (2245)-Garabetyan,A (2096) Belgrade 2021}) 10... Nc6 {[%emt 0:08:16]} 11. O-O-O {[%emt 0:02:50]} b5 {[%emt 0:03:26]} 12. Kb1 {[%emt 0:04:41]} Bb7 {[%emt 0:05:05] [#]} (12... Nf6 $11) 13. h4 {[%emt 0:12:15]} (13. Bxb5 $1 $14 axb5 14. Nxb5) 13... h5 {[%emt 0:08:35]} 14. Bxb5 {[%emt 0:01:01]} (14. f4 $5 {[%cal Rf4f5]}) 14... Nf6 {[%emt 0:15:15]} ({Black should play} 14... axb5 $14 15. Nxb5 Qb8) 15. Be2 $16 {[%emt 0:06:42] 0x0.001b6910e283dp-1022s more active pieces.} Ne5 {[%emt 0:04:18]} 16. f3 {[%emt 0:00:28]} O-O {[%emt 0:02:27]} 17. Qf2 {[%emt 0:01:19]} Rfc8 {[%emt 0:01:28]} 18. Bb6 {[%emt 0:02:51]} Qb8 {[%emt 0:04:57][%cal Oa6a5]} 19. Qe3 {[%emt 0:02:44]} (19. Bd4 {keeps more tension.} a5 20. a4 d5 21. Qg3) 19... Bc6 {[%emt 0:07:04]} (19... a5 $14) 20. Rdg1 {[%emt 0:04:10]} (20. g4 $16) 20... Ned7 {[%emt 0:04:12]} (20... a5 $1 $11 21. Bd4 (21. Nxa5 $2 Nfd7 $19) (21. Bxa5 d5 $11) 21... a4) 21. Ba5 $1 $36 {[%emt 0:00:30][%mdl 2048] White is really pushing.} d5 {[%emt 0:01:45]} 22. g4 {[%emt 0:00:44] aiming for gxh5.} dxe4 {[%emt 0:05:55]} 23. Nxe4 {[%emt 0:01:50]} (23. fxe4 $16 {gxh5 is the strong threat.} Nxg4 24. Bxg4 hxg4 25. h5) 23... Nd5 {[%emt 0:04:08]} (23... Qe5 $1 $14 24. Nxf6+ Bxf6 25. Qxe5 Nxe5) 24. Qd2 $1 {[%emt 0:01:06] Black must now prevent gxh5.} N7f6 {[%emt 0:00:51]} 25. Nxf6+ $1 {[%emt 0:01:41]} Nxf6 $4 {[%emt 0:02:31][%mdl 8192] This costs Black the game.} (25... Bxf6 $16 {is tougher.} 26. Bd3 Bb5) 26. gxh5 $18 {[%emt 0:00:16]} Nxh5 {[%emt 0:01:02]} 27. Qh6 $1 {[%emt 0:00:09] Strongly threatening Bc3.} Nf4 {[%emt 0:00:25] [#]} 28. Bc3 $1 {[%emt 0:01:00][%csl Gc3][%cal Rh6h8]} e5 {[%emt 0:00:18] [#]} 29. Bc4 {[%emt 0:00:18]} (29. h5 $142 $1 Bd5 {[#]} 30. hxg6 $1 fxg6 31. Rxg6+ Kf7 32. Qg7+ Ke8 33. Bxe5 Nxg6 34. Bxb8) 29... Bd5 {[%emt 0:00:47]} 30. Bxd5 {[%emt 0:02:29]} Nxd5 {[%emt 0:00:09]} 31. h5 {[%emt 0:00:37]} Nxc3+ {[%emt 0:00:42]} 32. bxc3 {[%emt 0:00:03]} g5 {[%emt 0:00:36]} 33. Rxg5+ {[%emt 0:00:06]} Bxg5 {[%emt 0:00:27]} 34. Rg1 {[%emt 0:00:35][%cal Rg1g5]} f6 {[%emt 0:00:36]} 35. Qxf6 $1 {[%emt 0:00:07] Weighted Error Value: White=0.17 (very precise) /Black=0.95} 1-0

[Event "55th Iranian-ch Men Final 2022"]
[Site "Iran"]
[Date "2022.06.22"]
[Round "11.5"]
[White "Atakhan, Abtin"]
[Black "Poormosavi, Seyed Kian"]
[Result "0-1"]
[ECO "A28"]
[WhiteElo "2358"]
[BlackElo "2358"]
[Annotator "TA"]
[PlyCount "54"]
[EventDate "2022.06.15"]
[EventType "tourn"]
[EventCountry "IRI"]
[SourceTitle "playchess.com"]
[Source "ChessBase"]
[SourceQuality "1"]
[TimeControl "40/5400+30:1800+30"]

{[%evp 13,54,-35,4,-50,-43,-58,-55,-66,-51,-35,-54,-50,-49,-73,-72,-78,-29,-44,-36,-46,-28,-33,-34,-45,-40,-76,-94,-124,-122,-115,-131,-204,-189,-274,-281,-637,-621,-608,-622,-799,-787,-1054,-1015]} 1. Nf3 {[%emt 0:02:40]} Nf6 {[%emt 0:00:16]} 2. c4 {[%emt 0:00:36]} Nc6 {[%emt 0:00:31]} 3. Nc3 {[%emt 0:03:53]} e5 {[%emt 0:04:30]} 4. e3 {[%emt 0:04:24]} Bb4 {[%emt 0:03:41]} 5. Qc2 {[%emt 0:00:15]} O-O {[%emt 0:01:11]} 6. Nd5 {[%emt 0:00:35]} Re8 {[%emt 0:02:33]} 7. a3 {[%emt 0:06:28]} Bf8 {[%emt 0:01:02]} (7... e4 $5) 8. Qf5 {[%emt 0:12:19] A28: English Opening: Four Knights Variation.} (8. h4 $11) 8... Nxd5 $1 $15 {[%emt 0:11:38]} 9. cxd5 {[%emt 0:03:02] [#] Strongly threatening Ng5.} d6 $1 {[%emt 0:01:03]} 10. Qc2 {[%emt 0:00:16] Black is slightly better.} (10. Qb1 Ne7) 10... Ne7 {[%emt 0:01:08]} 11. Bc4 {[%emt 0:02:13] [#]} Bg4 $146 {[%emt 0:06:43]} ({Predecessor:} 11... g6 12. b4 {½-½ (12) Mirzoev,E (2493)-Hopman,P (2347) Bayerisch Eisenstein 2019}) 12. Ng5 {[%emt 0:03:58][%csl Gg5][%cal Rc2h7]} Ng6 {[%emt 0:06:07]} 13. h4 {[%emt 0:00:46]} h6 {[%emt 0:11:16]} 14. Ne6 {[%emt 0:01:21]} fxe6 {[%emt 0:00:49]} (14... Qf6 $17 15. Nxf8 (15. Nxc7 Rec8 $17) 15... Rxf8) 15. Qxg6 $11 {[%emt 0:00:09]} Bf5 {[%emt 0:00:26]} 16. Qg3 {[%emt 0:02:28]} c6 {[%emt 0:09:07]} 17. dxe6 {[%emt 0:09:18]} Bxe6 {[%emt 0:00:24]} 18. Bxe6+ {[%emt 0:00:35]} Rxe6 {[%emt 0:00:16]} 19. e4 {[%emt 0:02:14]} d5 {[%emt 0:04:36]} 20. Qg4 {[%emt 0:18:44]} Rf6 {[%emt 0:01:35] aiming for ...Bc5.} 21. O-O {[%emt 0:03:04][%cal Od2d4]} Bc5 {[%emt 0:00:46] And now ...Qb6 would win.} 22. d3 {[%emt 0:01:45]} (22. d4 $17 Bxd4 23. Be3) 22... Qb6 $19 {[%emt 0:01:48] Threatens to win with ...Raf8.} 23. Kh2 {[%emt 0:11:39]} (23. Be3 {was necessary.}) 23... Bxf2 {[%emt 0:00:45]} 24. Bg5 $2 {[%emt 0:03:48] [#]} (24. Bd2) 24... hxg5 {[%emt 0:04:06] Black is clearly winning.} 25. hxg5 {[%emt 0:00:05]} Rd6 {[%emt 0:01:28]} 26. g6 {[%emt 0:01:39]} Qe3 {[%emt 0:01:01]} 27. g3 {[%emt 0:01:37]} Qh6+ {[%emt 0:01:56] Weighted Error Value: White=0.70/Black=0.06 (flawless)} 0-1

[Event "55th Iranian-ch Men Final 2022"]
[Site "Iran"]
[Date "2022.06.22"]
[Round "11.6"]
[White "Darini, Pouria"]
[Black "Daghli, Arash"]
[Result "1/2-1/2"]
[ECO "B45"]
[WhiteElo "2431"]
[BlackElo "2441"]
[Annotator "TA"]
[PlyCount "81"]
[EventDate "2022.06.15"]
[EventType "tourn"]
[EventCountry "IRI"]
[SourceTitle "playchess.com"]
[Source "ChessBase"]
[SourceQuality "1"]
[TimeControl "40/5400+30:1800+30"]

{[%evp 11,81,0,0,0,0,0,0,8,0,-27,-26,-8,-4,0,-14,-8,-6,-37,-39,-39,-34,-43,-18,-38,-16,-32,-15,-33,0,-26,-17,-61,-35,-35,-37,-46,-18,-19,-18,-18,-20,-24,0,0,0,-41,-44,-51,-46,-38,-41,-41,-48,-49,0,0,0,0,0,0,0,0,0,0,0,0,0,0,0,0,0,0]} 1. e4 {[%emt 1:31:00]} c5 {[%emt 0:10:25]} 2. Nf3 {[%emt 0:00:00]} e6 {[%emt 0:00:07]} 3. d4 {[%emt 0:00:00]} cxd4 {[%emt 0:00:11]} 4. Nxd4 {[%emt 0:00:00]} Nf6 {[%emt 0:00:05]} 5. Nc3 {[%emt 0:00:00]} Nc6 {[%emt 0:00:06]} 6. a3 {[%emt 0:00:00]} Be7 {[%emt 0:00:34]} 7. Nxc6 $1 {[%emt 0:00:00][%mdl 4] is now more promising than 7.Be2. B45: Sicilian Four Knights.} bxc6 {[%emt 0:00:23]} 8. e5 {[%emt 0:00:00]} Nd5 {[%emt 0:00:15]} 9. Qg4 {[%emt 0:00:00]} g6 {[%emt 0:03:11]} (9... Nxc3 10. Qxg7 Rf8 11. bxc3 $14) 10. Ne4 {[%emt 0:00:00]} f5 {[%emt 0:03:43]} 11. exf6 $1 {[%emt 0:00:00]} Nxf6 {[%emt 0:00:25]} 12. Nxf6+ {[%emt 0:00:00]} Bxf6 {[%emt 0:00:01]} 13. Be2 {[%emt 0:00:00]} d5 {[%emt 0:04:06]} 14. O-O {[%emt 0:00:00]} O-O {[%emt 0:01:17] [#]} 15. Rb1 $146 {[%emt 0:00:00]} ({Predecessor:} 15. Qa4 Qc7 16. c4 Rb8 17. Rb1 c5 18. Bh6 Bd7 19. Qd1 Rfd8 20. cxd5 Bc6 21. Qc1 Bxd5 22. Bf4 Be5 23. Bxe5 Qxe5 24. Re1 Qd4 {½-½ (24) Papp,G (2574)-Efimenko,Z (2597) Germany 2022}) 15... e5 {[%emt 0:04:48][%cal Be6e5,Be5e4][%mdl 32]} 16. Qa4 {[%emt 0:00:00]} Qd6 {[%emt 0:01:24]} 17. Bd2 {[%emt 0:00:00]} e4 {[%emt 0:08:44]} 18. Rbd1 {[%emt 0:00:00]} Be5 {[%emt 0:12:26]} 19. h3 {[%emt 0:00:00]} Qf6 {[%emt 0:01:10]} 20. Be3 {[%emt 0:00:00]} Bxb2 {[%emt 0:08:11]} 21. f3 {[%emt 0:00:00]} Qd6 {[%emt 0:00:46][%cal Oc8h3] And now ...Bxh3! would win.} (21... Qc3 $5 {[%cal Rc3e3]} 22. Bh6 exf3 23. Bxf3 Qc5+ 24. Kh1 Bg7 25. Bxg7 Kxg7 $17) 22. fxe4 {[%emt 0:05:14] [#]} Bxh3 $1 {[%emt 0:00:44] ( -> ...Qg3)} 23. Bf3 {[%emt 0:04:04]} (23. Rf3 Be6) 23... Be6 {[%emt 0:16:54]} (23... Bxa3 $2 24. e5 Qe7 25. gxh3 $18) (23... Rxf3 $5 24. Rxf3 Bg4 $15) 24. exd5 {[%emt 0:00:31]} cxd5 {[%emt 0:00:01]} 25. c4 {[%emt 0:01:37]} Qe5 {[%emt 0:12:47]} ({Don't take} 25... Bxa3 26. Rxd5 Qb4 27. Ra5 Rxf3 28. gxf3 Qxa4 29. Rxa4 $16) 26. Rde1 {[%emt 0:00:13]} Bd4 {[%emt 0:00:06]} ({But not} 26... dxc4 27. Bf2 Qd6 28. Bxa8 Rxa8 29. Rd1 $14) 27. Bxd4 {[%emt 0:00:27]} Qxd4+ {[%emt 0:00:01]} 28. Rf2 {[%emt 0:00:10]} (28. Kh1 $5 {[%cal Re1e6]} Bf7 29. Qa6 $11) 28... Rae8 {[%emt 0:04:12]} 29. Rd1 {[%emt 0:01:10]} Qh4 {[%emt 0:00:01]} 30. Qxa7 {[%emt 0:00:13]} dxc4 {[%emt 0:00:35]} 31. Bc6 {[%emt 0:00:43]} Rxf2 {[%emt 0:05:16]} 32. Qxf2 {[%emt 0:00:02]} Qh5 {[%emt 0:01:20]} (32... Qxf2+ $15 33. Kxf2 Re7) 33. Re1 $11 {[%emt 0:00:44] Active counter play! The position is equal.} Rf8 {[%emt 0:00:08]} 34. Qd4 {[%emt 0:00:44]} Bf7 {[%emt 0:00:59]} 35. Re5 {[%emt 0:00:34] Inhibits Qa5.} ({Much worse is} 35. Re7 Qg5 36. Rd7 Qc1+ 37. Kh2 Qxa3 $15) 35... Qh6 {[%emt 0:00:01]} 36. Bd5 {[%emt 0:00:09]} Qc1+ {[%emt 0:02:21]} 37. Kh2 {[%emt 0:00:01]} Bxd5 {[%emt 0:00:43]} 38. Qxd5+ {[%emt 0:00:07]} Kh8 {[%emt 0:00:01]} 39. Re4 {[%emt 0:01:18] Inhibits Qf4+.} Qh6+ {[%emt 0:00:35]} 40. Kg1 {[%emt 0:00:00]} Qc1+ {[%emt 0:00:00]} 41. Kh2 {[%emt 0:00:55] Weighted Error Value: White=0.06 (flawless) /Black=0.07 (flawless)} 1/2-1/2

[Event "55th Iranian-ch Men Final 2022"]
[Site "Iran"]
[Date "2022.06.22"]
[Round "11.7"]
[White "Khamisi, S Jafar"]
[Black "Daneshvar, Bardiya"]
[Result "0-1"]
[ECO "B62"]
[WhiteElo "2118"]
[BlackElo "2486"]
[Annotator "TA"]
[PlyCount "66"]
[EventDate "2022.06.15"]
[EventType "tourn"]
[EventCountry "IRI"]
[SourceTitle "playchess.com"]
[Source "ChessBase"]
[SourceQuality "1"]
[TimeControl "40/5400+30:1800+30"]

{[%evp 12,66,29,23,40,31,27,22,44,28,42,41,49,37,39,39,34,0,54,68,70,63,98,85,103,89,86,51,89,26,31,41,24,32,19,12,66,85,57,59,85,-156,0,-270,-73,-181,-79,-122,-87,-795,-758,-819,-762,-1255,-1141,-29991,-29992]} 1. e4 {[%emt 0:00:08]} c5 {[%emt 0:00:05]} 2. Nf3 {[%emt 0:00:08]} d6 {[%emt 0:00:05]} 3. d4 {[%emt 0:00:05]} cxd4 {[%emt 0:00:03]} 4. Nxd4 {[%emt 0:00:06]} Nf6 {[%emt 0:00:04]} 5. Nc3 {[%emt 0:00:09]} Nc6 {[%emt 0:00:10]} 6. Bg5 {[%emt 0:00:09]} e6 {[%emt 0:00:09]} 7. Qd3 {[%emt 0:00:32]} Bd7 {[%emt 0:00:15] The modern move. B62: Sicilian: Richter-Rauzer: 6...e6: Unusual White 7th moves.} 8. Ndb5 {[%emt 0:00:50]} Nb4 {[%emt 0:02:26]} 9. Qd1 {[%emt 0:00:26]} Qb8 {[%emt 0:00:47] The position is equal.} 10. Bf4 {[%emt 0:00:18][%cal Rb5d6]} e5 {[%emt 0:01:00]} 11. Bg5 {[%emt 0:00:08]} a6 {[%emt 0:01:12]} 12. Bxf6 {[%emt 0:01:01]} gxf6 {[%emt 0:00:07]} 13. Na3 {[%emt 0:00:04]} ({Inferior is} 13. a3 Nc6 14. Nd5 axb5 $17) 13... b5 {[%emt 0:11:23] Prevents Nc4.} 14. Be2 {[%emt 0:00:37] [#]} Qd8 $146 {[%emt 0:05:47]} ({Black should try} 14... Qb7 $11) ({Predecessor:} 14... Rg8 15. O-O d5 16. exd5 Qb6 17. Bf3 f5 18. Nab1 a5 19. a3 Na6 20. Nd2 Rc8 {½-½ (30) Volkov,R (2161)-Lobanov,S (2516) St Petersburg 2021}) 15. O-O $14 {[%emt 0:09:59]} Be6 {[%emt 0:07:15]} 16. Nab1 {[%emt 0:06:27]} Nc6 {[%emt 0:03:49]} 17. a4 {[%emt 0:04:31]} b4 {[%emt 0:01:41]} 18. Nd5 {[%emt 0:00:32]} Bg7 {[%emt 0:04:32]} 19. Bc4 {[%emt 0:03:51]} O-O {[%emt 0:03:18]} 20. Nd2 {[%emt 0:03:44]} (20. Qd3 $16) 20... f5 $1 $11 {[%emt 0:02:18]} 21. exf5 {[%emt 0:04:59]} Bxf5 {[%emt 0:00:15]} 22. a5 {[%emt 0:20:11]} Kh8 {[%emt 0:05:01]} 23. Nb3 {[%emt 0:01:24]} Bg6 {[%emt 0:04:04]} (23... e4 $11) 24. Ra4 {[%emt 0:02:30]} (24. Qe2 {is more complex.} e4 25. Bxa6 Qg5 26. Bc4) 24... e4 {[%emt 0:02:37]} 25. Nxb4 {[%emt 0:02:17] Pair of Knights!} Ne5 {[%emt 0:01:35]} 26. Bxa6 {[%emt 0:12:31] [#]} (26. Nd5 $16 {stays on course.}) 26... Qd7 $2 {[%emt 0:02:50]} ({Better is} 26... Nf3+ $1 $17 {[%mdl 512]} 27. gxf3 Be5) 27. Qa1 $2 {[%emt 0:06:25][%mdl 8192]} (27. Ra1 $11 {and White stays safe.}) 27... f5 $2 {[%emt 0:03:18]} (27... Bh5 $19 {is more deadly.} 28. Kh1 Rxa6 $1 29. Nxa6 Be2) 28. Nd4 {[%emt 0:06:08] [#]} (28. Be2 $17 f4 29. f3) 28... Rxa6 $1 {[%emt 0:05:56][%mdl 512]} 29. Nxa6 $17 {[%emt 0:00:09][%cal Oa6c7] [#] Nc7! is the strong threat.} f4 $1 {[%emt 0:00:56] Black is more active.} 30. Nb4 $2 {[%emt 0:09:08][%mdl 8192] Now White is beyond hope.} (30. f3 $17 exf3 31. gxf3) 30... f3 $19 {[%emt 0:02:05]} 31. Nd5 {[%emt 0:02:37]} fxg2 {[%emt 0:00:33]} 32. Kxg2 {[%emt 0:00:13]} Nf3 {[%emt 0:02:20] ( -> ...Qg4+)} 33. c3 {[%emt 0:04:05]} Bxd4 {[%emt 0:00:32] Weighted Error Value: White=0.98/Black=0.33} 0-1